[Event "2nd Irena Warakomska Memorial-A"]
[Site "Suwalki"]
[Date "2018.08.04"]
[Round "5"]
[White "Kokoszczynski, Jan"]
[Black "Sliwicka, Alicja"]
[Result "1/2-1/2"]
[ECO "B67"]
[WhiteElo "2187"]
[BlackElo "2293"]
[Annotator "NA"]
[PlyCount "73"]
[EventDate "2018.08.01"]
[EventType "swiss"]
[EventCountry "POL"]
[SourceTitle "playchess.com"]
[Source "ChessBase"]
[SourceQuality "1"]
[TimeControl "40/5400+30:1800+30"]

1. e4 {[%emt 0:00:00]} c5 {[%emt 0:00:00]} 2. Nf3 {[%emt 0:00:00]} d6 {[%emt 0:00:00]} 3. d4 {[%emt 0:00:00]} Nf6 {[%emt 0:00:00]} 4. Nc3 {[%emt 0:00:10]} cxd4 {[%emt 0:00:00]} 5. Nxd4 {[%emt 0:00:07]} Nc6 {[%emt 0:00:00]} 6. Bg5 {[%emt 0:00:23]} e6 {[%emt 0:00:01]} 7. Qd2 {[%emt 0:00:23]} a6 {[%emt 0:00:03]} 8. O-O-O {[%emt 0:00:58]} Bd7 {[%emt 0:00:04]} 9. f4 {[%emt 0:03:04]} b5 {[%emt 0:00:17]} 10. Bxb5 {[%emt 0:15:53]} axb5 {[%emt 0:00:12]} 11. Ndxb5 {[%emt 0:00:05]} Nb4 {[%emt 0:00:15]} 12. Bxf6 {[%emt 0:17:26]} gxf6 {[%emt 0:01:10]} 13. Nxd6+ {[%emt 0:02:55]} Bxd6 {[%emt 0:00:25]} 14. Qxd6 {[%emt 0:00:04]} Nxa2+ {[%emt 0:03:40]} 15. Nxa2 {[%emt 0:00:07]} Rxa2 {[%emt 0:00:13]} 16. Kb1 {[%emt 0:00:14]} Ra7 {[%emt 0:10:20]} 17. Rd3 {[%emt 0:04:51]} Qa8 {[%emt 0:09:12]} 18. Ra3 {[%emt 0:11:57]} Rxa3 {[%emt 0:00:48]} 19. bxa3 {[%emt 0:00:10]} Qc6 {[%emt 0:05:06]} 20. Qb8+ {[%emt 0:01:27]} Bc8 {[%emt 0:00:35]} 21. Qb4 {[%emt 0:00:18]} Qb7 {[%emt 0:00:31]} 22. Kb2 {[%emt 0:00:22]} Qxb4+ {[%emt 0:00:44]} 23. axb4 {[%emt 0:00:05]} Kd7 {[%emt 0:02:52]} 24. c4 {[%emt 0:00:09]} Kc7 {[%emt 0:02:12]} 25. Kc3 {[%emt 0:00:36]} Rd8 {[%emt 0:00:47]} 26. e5 {[%emt 0:04:38]} f5 {[%emt 0:01:27]} 27. g3 {[%emt 0:01:02]} Bb7 {[%emt 0:02:01]} 28. Ra1 {[%emt 0:03:21]} h5 {[%emt 0:04:41]} 29. b5 {[%emt 0:10:17]} Kb6 {[%emt 0:07:27]} 30. Kb4 {[%emt 0:01:09]} Rd4 {[%emt 0:00:48]} 31. h4 {[%emt 0:00:22]} Bd5 {[%emt 0:04:43]} 32. Rc1 {[%emt 0:00:06]} Be4 {[%emt 0:01:14]} 33. Ra1 {[%emt 0:02:37]} Kb7 {[%emt 0:07:02]} 34. Ra3 {[%emt 0:19:06]} Rd1 {[%emt 0:01:55]} 35. c5 {[%emt 0:00:40]} Rb1+ {[%emt 0:04:14]} 36. Rb3 {[%emt 0:00:03]} Rc1 {[%emt 0:08:13]} 37. Rc3 {[%emt 0:00:18]} 1/2-1/2

[Event "2nd Irena Warakomska Memorial-A"]
[Site "Suwalki"]
[Date "2018.08.04"]
[Round "5"]
[White "Popiol, Michal"]
[Black "Krzywda, Andrzej"]
[Result "1-0"]
[ECO "E12"]
[WhiteElo "2164"]
[BlackElo "2296"]
[Annotator "NA"]
[PlyCount "119"]
[EventDate "2018.08.01"]
[EventType "swiss"]
[EventCountry "POL"]
[SourceTitle "playchess.com"]
[Source "ChessBase"]
[SourceQuality "1"]
[TimeControl "40/5400+30:1800+30"]

1. d4 {[%emt 0:00:00]} Nf6 {[%emt 0:00:00]} 2. c4 {[%emt 0:00:00]} e6 {[%emt 0:00:00]} 3. Nf3 {[%emt 0:00:01]} b6 {[%emt 0:00:00]} 4. a3 {[%emt 0:02:42]} Bb7 {[%emt 0:00:31]} 5. Nc3 {[%emt 0:00:05]} d5 {[%emt 0:00:07]} 6. cxd5 {[%emt 0:00:06]} Nxd5 {[%emt 0:00:10]} 7. e3 {[%emt 0:00:12]} g6 {[%emt 0:00:47]} 8. Bb5+ {[%emt 0:03:14]} c6 {[%emt 0:00:36]} 9. Bd3 {[%emt 0:00:04]} Bg7 {[%emt 0:02:18]} 10. h4 {[%emt 0:32:55]} Nd7 {[%emt 0:09:29]} 11. h5 {[%emt 0:04:18]} O-O {[%emt 0:18:15]} 12. e4 {[%emt 0:07:12]} Nxc3 {[%emt 0:00:50]} 13. bxc3 e5 14. hxg6 {[%emt 0:18:23]} hxg6 {[%emt 0:01:23]} 15. Kf1 {[%emt 0:06:26]} exd4 {[%emt 0:04:24]} 16. cxd4 {[%emt 0:00:05]} c5 {[%emt 0:01:42]} 17. Bg5 {[%emt 0:00:37]} Qe8 {[%emt 0:14:21]} 18. d5 {[%emt 0:02:16]} Ne5 {[%emt 0:05:20]} 19. Rb1 {[%emt 0:00:21]} Nxd3 {[%emt 0:05:28]} 20. Qxd3 {[%emt 0:00:02]} Qa4 {[%emt 0:01:59]} 21. Kg1 {[%emt 0:00:35]} c4 {[%emt 0:09:28]} 22. Qe3 {[%emt 0:00:29]} c3 {[%emt 0:04:26]} 23. Qf4 {[%emt 0:01:12]} Rfe8 {[%emt 0:00:51]} 24. Re1 {[%emt 0:02:39]} f5 {[%emt 0:10:35]} 25. Qc7 {[%emt 0:05:18]} Bxd5 {[%emt 0:04:38]} 26. exd5 {[%emt 0:02:06]} Rxe1+ {[%emt 0:00:11]} 27. Nxe1 {[%emt 0:00:05]} Qd1 {[%emt 0:00:50]} 28. Qe7 {[%emt 0:00:40]} Qxd5 {[%emt 0:01:03]} 29. Bf6 {[%emt 0:05:05]} Qf7 {[%emt 0:00:44]} 30. Qxf7+ {[%emt 0:00:07]} Kxf7 {[%emt 0:00:01]} 31. Bxg7 {[%emt 0:00:02]} Kxg7 {[%emt 0:00:20]} 32. Rh3 {[%emt 0:00:09]} Rc8 {[%emt 0:00:21]} 33. Nc2 {[%emt 0:00:05]} b5 {[%emt 0:00:26]} 34. Rd3 {[%emt 0:01:27]} a5 {[%emt 0:00:25]} 35. Rd4 {[%emt 0:00:55]} Kf6 {[%emt 0:04:37]} 36. Kf1 {[%emt 0:00:49]} g5 {[%emt 0:00:19]} 37. Ke2 {[%emt 0:00:20]} Ke5 {[%emt 0:00:47]} 38. Kd3 {[%emt 0:00:24]} f4 {[%emt 0:00:28]} 39. Rd7 {[%emt 0:03:27]} Rc5 {[%emt 0:00:42]} 40. Ra7 {[%emt 0:00:00]} a4 {[%emt 0:00:00]} 41. f3 {[%emt 0:07:51]} Kd6 {[%emt 0:08:44]} 42. Ra6+ {[%emt 0:01:01]} Ke5 {[%emt 0:01:31]} 43. Rg6 {[%emt 0:02:31]} Kf5 {[%emt 0:00:13]} 44. Rb6 {[%emt 0:00:17]} Ke5 {[%emt 0:00:42]} 45. Nd4 {[%emt 0:01:46]} c2 {[%emt 0:02:24]} 46. Nxc2 {[%emt 0:00:13]} Rd5+ {[%emt 0:00:58]} 47. Ke2 {[%emt 0:00:43]} Rc5 {[%emt 0:00:22]} 48. Nb4 {[%emt 0:00:33]} Kf5 {[%emt 0:12:25]} 49. Kd2 {[%emt 0:03:35]} g4 {[%emt 0:01:06]} 50. Rc6 {[%emt 0:03:18]} Re5 {[%emt 0:00:46]} 51. Nd3 {[%emt 0:00:08]} Re3 {[%emt 0:02:32]} 52. Rc5+ {[%emt 0:00:07]} Kf6 {[%emt 0:00:38]} 53. fxg4 {[%emt 0:01:18]} b4 {[%emt 0:04:42]} 54. g5+ {[%emt 0:01:15]} Kg7 {[%emt 0:00:01]} 55. axb4 {[%emt 0:00:20]} a3 {[%emt 0:00:50]} 56. Rc7+ {[%emt 0:03:39]} Kg8 {[%emt 0:00:33]} 57. Ra7 {[%emt 0:00:44]} Rg3 {[%emt 0:00:32]} 58. Nxf4 {[%emt 0:00:21]} Rg4 {[%emt 0:00:30]} 59. Ke3 {[%emt 0:03:37]} Rxg5 {[%emt 0:00:05]} 60. Kf3 {[%emt 0:02:02]} 1-0

[Event "2nd Irena Warakomska Memorial-A"]
[Site "Suwalki"]
[Date "2018.08.04"]
[Round "5"]
[White "Zielinski, Wojciech"]
[Black "Tomaszewski, Roman"]
[Result "1/2-1/2"]
[ECO "B12"]
[WhiteElo "2157"]
[BlackElo "2258"]
[Annotator "NA"]
[PlyCount "118"]
[EventDate "2018.08.01"]
[EventType "swiss"]
[EventCountry "POL"]
[SourceTitle "playchess.com"]
[Source "ChessBase"]
[SourceQuality "1"]
[TimeControl "40/5400+30:1800+30"]

1. e4 {[%emt 0:00:00]} c6 {[%emt 0:00:01]} 2. d4 {[%emt 0:00:00]} d5 {[%emt 0:00:04]} 3. f3 {[%emt 0:00:02]} g6 {[%emt 0:06:13]} 4. Nc3 {[%emt 0:00:58]} Bg7 {[%emt 0:00:22]} 5. Be3 {[%emt 0:00:24]} b6 {[%emt 0:06:12]} 6. Qd2 {[%emt 0:06:33]} Ba6 {[%emt 0:06:04]} 7. Bxa6 {[%emt 0:02:47]} Nxa6 {[%emt 0:00:04]} 8. Nge2 {[%emt 0:05:21]} Nc7 {[%emt 0:09:53]} 9. O-O-O {[%emt 0:03:35]} Qd7 {[%emt 0:01:45]} 10. h4 {[%emt 0:05:45]} h5 {[%emt 0:04:22]} 11. Kb1 {[%emt 0:02:07]} O-O-O {[%emt 0:08:58]} 12. Bf4 {[%emt 0:05:21]} Ne6 {[%emt 0:02:15]} 13. exd5 {[%emt 0:03:12]} cxd5 {[%emt 0:00:09]} 14. Rhe1 {[%emt 0:08:23]} Nxf4 {[%emt 0:08:55]} 15. Qxf4 {[%emt 0:03:12]} Nh6 {[%emt 0:14:10]} 16. Nc1 {[%emt 0:12:11]} Nf5 {[%emt 0:01:12]} 17. Nb3 {[%emt 0:00:49]} e6 {[%emt 0:00:34]} 18. Qh2 {[%emt 0:02:28]} Qc7 {[%emt 0:00:14]} 19. f4 {[%emt 0:02:39]} Kb7 {[%emt 0:08:19]} 20. g3 {[%emt 0:01:15]} Rc8 {[%emt 0:00:10]} 21. Rd3 {[%emt 0:02:41]} Qd7 {[%emt 0:03:23]} 22. Nd1 {[%emt 0:02:12]} a5 {[%emt 0:08:39]} 23. Qd2 {[%emt 0:07:15]} a4 {[%emt 0:01:03]} 24. Nc1 {[%emt 0:00:06]} Nd6 {[%emt 0:00:48]} 25. a3 {[%emt 0:01:37]} Nc4 {[%emt 0:00:49]} 26. Qf2 {[%emt 0:01:30]} Qb5 {[%emt 0:00:32]} 27. Na2 {[%emt 0:02:08]} Bf8 {[%emt 0:00:20]} 28. Ka1 {[%emt 0:01:40]} Rc7 {[%emt 0:00:32]} 29. Rf3 {[%emt 0:02:58]} Be7 {[%emt 0:01:06]} 30. c3 {[%emt 0:00:49]} Rhc8 {[%emt 0:00:48]} 31. Ne3 {[%emt 0:01:06]} Nd6 {[%emt 0:02:06]} 32. Nc2 {[%emt 0:01:27]} Ne4 {[%emt 0:00:38]} 33. Qe2 {[%emt 0:01:27]} Qxe2 {[%emt 0:00:11]} 34. Rxe2 {[%emt 0:00:08]} Bd6 {[%emt 0:00:54]} 35. Nab4 {[%emt 0:00:56]} Bxb4 {[%emt 0:01:16]} 36. Nxb4 {[%emt 0:00:46]} Nxc3 {[%emt 0:00:57]} 37. bxc3 {[%emt 0:00:47]} Rxc3 {[%emt 0:00:01]} 38. Ree3 {[%emt 0:00:33]} R3c4 {[%emt 0:02:44]} 39. Rd3 {[%emt 0:00:00]} Rc1+ {[%emt 0:00:00]} 40. Kb2 {[%emt 0:00:00]} R8c4 {[%emt 0:00:00]} 41. Rc3 {[%emt 0:14:31]} R1xc3 {[%emt 0:01:19]} 42. Rxc3 {[%emt 0:00:12]} Rxd4 {[%emt 0:00:11]} 43. Nc6 {[%emt 0:01:16]} Rd2+ {[%emt 0:06:20]} 44. Kc1 {[%emt 0:00:17]} Re2 {[%emt 0:02:00]} 45. Nd8+ {[%emt 0:03:02]} Ka6 {[%emt 0:01:18]} 46. Nxf7 {[%emt 0:00:09]} d4 {[%emt 0:06:25]} 47. Rd3 {[%emt 0:04:05]} Kb5 {[%emt 0:02:12]} 48. Rxd4 {[%emt 0:04:54]} Re3 {[%emt 0:00:34]} 49. Rb4+ {[%emt 0:01:42]} Ka5 {[%emt 0:13:14]} 50. Nd6 {[%emt 0:03:43]} Rxa3 {[%emt 0:00:02]} 51. Rb5+ {[%emt 0:01:54]} Ka6 {[%emt 0:00:02]} 52. Rxb6+ {[%emt 0:00:21]} Kxb6 {[%emt 0:00:35]} 53. Nc4+ {[%emt 0:00:05]} Kc5 {[%emt 0:00:10]} 54. Nxa3 {[%emt 0:00:05]} Kd4 {[%emt 0:00:16]} 55. Kd2 {[%emt 0:00:44]} Ke4 {[%emt 0:00:50]} 56. Ke2 {[%emt 0:00:12]} e5 {[%emt 0:00:07]} 57. fxe5 {[%emt 0:00:30]} Kxe5 {[%emt 0:00:02]} 58. Kf3 {[%emt 0:02:44]} Kf5 {[%emt 0:02:33]} 59. Nc4 {[%emt 0:02:12]} g5 {[%emt 0:00:24] Ke4+ Ke5+} 1/2-1/2

[Event "2nd Irena Warakomska Memorial-A"]
[Site "Suwalki"]
[Date "2018.08.04"]
[Round "5"]
[White "Ocytko, Andrzej"]
[Black "Jaroch, Karol"]
[Result "1/2-1/2"]
[ECO "C00"]
[WhiteElo "2155"]
[BlackElo "2222"]
[Annotator "NA"]
[PlyCount "82"]
[EventDate "2018.08.01"]
[EventType "swiss"]
[EventCountry "POL"]
[SourceTitle "playchess.com"]
[Source "ChessBase"]
[SourceQuality "1"]
[TimeControl "40/5400+30:1800+30"]

1. e4 {[%emt 0:00:00]} e6 {[%emt 0:00:00]} 2. d3 {[%emt 0:00:00]} d5 {[%emt 0:00:00]} 3. Nd2 {[%emt 0:00:00]} c5 {[%emt 0:00:00]} 4. Ngf3 {[%emt 0:00:00]} Nf6 5. g3 {[%emt 0:00:00]} Nc6 {[%emt 0:00:02]} 6. Bg2 {[%emt 0:00:00]} Be7 {[%emt 0:00:23]} 7. O-O {[%emt 0:00:32]} Qc7 8. Re1 O-O {[%emt 0:02:14]} 9. c3 {[%emt 0:02:03]} b5 {[%emt 0:20:27]} 10. Nf1 {[%emt 0:14:18]} b4 {[%emt 0:00:38]} 11. Qc2 {[%emt 0:01:25]} Ba6 {[%emt 0:00:52]} 12. Bf4 {[%emt 0:01:08]} Qa5 {[%emt 0:02:23]} 13. Ne5 {[%emt 0:00:13]} Nxe5 {[%emt 0:01:17]} 14. Bxe5 {[%emt 0:00:28]} dxe4 {[%emt 0:05:13]} 15. dxe4 {[%emt 0:20:50]} Rad8 16. c4 Nd7 {[%emt 0:07:48]} 17. Bf4 {[%emt 0:00:44]} g5 {[%emt 0:04:39]} 18. Be3 {[%emt 0:06:35]} Ne5 {[%emt 0:24:01]} 19. b3 Bf6 {[%emt 0:00:10]} 20. Rad1 {[%emt 0:06:01]} h6 {[%emt 0:02:55]} 21. Qe2 {[%emt 0:15:37]} Ng6 22. h4 gxh4 {[%emt 0:02:56]} 23. Bxh6 {[%emt 0:00:50]} Rxd1 {[%emt 0:00:54]} 24. Rxd1 {[%emt 0:00:21]} Rd8 25. Be3 Rxd1 {[%emt 0:11:35]} 26. Qxd1 {[%emt 0:07:16]} Be7 {[%emt 0:02:11]} 27. Qe2 {[%emt 0:02:50]} Bb7 {[%emt 0:00:48]} 28. f4 {[%emt 0:03:45]} hxg3 {[%emt 0:05:29]} 29. Nxg3 {[%emt 0:04:40]} Qd8 {[%emt 0:03:26]} 30. f5 {[%emt 0:03:48]} Qd6 {[%emt 0:00:31]} 31. Qg4 {[%emt 0:06:21]} Qd3 {[%emt 0:00:42]} 32. Bf2 {[%emt 0:01:15]} exf5 {[%emt 0:00:35]} 33. exf5 {[%emt 0:00:29]} Bc8 {[%emt 0:02:55]} 34. Bd5 {[%emt 0:01:32]} Kf8 {[%emt 0:00:21]} 35. Qh5 Qb1+ {[%emt 0:00:38]} 36. Kh2 {[%emt 0:01:20]} Qxa2 {[%emt 0:00:29]} 37. Kg1 {[%emt 0:02:40]} Qa1+ {[%emt 0:00:45]} 38. Kh2 {[%emt 0:00:33]} Qb2 {[%emt 0:01:02]} 39. Kg1 Qa1+ {[%emt 0:00:00]} 40. Kh2 {[%emt 0:00:00]} Qb2 41. Kg1 Qb1+ {[%emt 0:05:51] Qh6+} 1/2-1/2

[Event "2nd Irena Warakomska Memorial-A"]
[Site "Suwalki"]
[Date "2018.08.04"]
[Round "5"]
[White "Praczukowski, Stanislaw"]
[Black "Sliwerski, Radoslaw"]
[Result "1/2-1/2"]
[ECO "B92"]
[WhiteElo "2136"]
[BlackElo "1990"]
[Annotator "NA"]
[PlyCount "108"]
[EventDate "2018.08.01"]
[EventType "swiss"]
[EventCountry "POL"]
[SourceTitle "playchess.com"]
[Source "ChessBase"]
[SourceQuality "1"]
[TimeControl "40/5400+30:1800+30"]

1. e4 {[%emt 0:00:00]} c5 {[%emt 0:00:00]} 2. Nf3 {[%emt 0:00:00]} d6 {[%emt 0:00:00]} 3. d4 {[%emt 0:00:00]} cxd4 {[%emt 0:00:00]} 4. Nxd4 {[%emt 0:00:00]} Nf6 {[%emt 0:00:00]} 5. Nc3 {[%emt 0:00:02]} a6 {[%emt 0:00:00]} 6. Be2 {[%emt 0:00:07]} e5 {[%emt 0:00:15]} 7. Nb3 {[%emt 0:00:25]} Be7 {[%emt 0:00:03]} 8. Bg5 {[%emt 0:00:24]} Be6 {[%emt 0:00:19]} 9. Bxf6 {[%emt 0:00:25]} Bxf6 {[%emt 0:00:02]} 10. Qd3 {[%emt 0:00:14]} Nc6 {[%emt 0:05:09]} 11. Rd1 {[%emt 0:06:53]} Nb4 {[%emt 0:09:59]} 12. Qxd6 {[%emt 0:05:55]} Nxc2+ {[%emt 0:00:14]} 13. Kf1 {[%emt 0:00:07]} Qxd6 {[%emt 0:00:23]} 14. Rxd6 {[%emt 0:00:02]} O-O {[%emt 0:10:38]} 15. Nc5 {[%emt 0:18:06]} Be7 {[%emt 0:05:29]} 16. Nxe6 {[%emt 0:00:18]} Bxd6 {[%emt 0:04:11]} 17. Nxf8 {[%emt 0:00:09]} Kxf8 {[%emt 0:00:01]} 18. g3 {[%emt 0:05:15]} Rc8 {[%emt 0:05:20]} 19. Bg4 {[%emt 0:04:48]} Rc4 {[%emt 0:03:38]} 20. Ke2 {[%emt 0:03:31]} b5 {[%emt 0:09:02]} 21. Rc1 {[%emt 0:09:41]} Nd4+ {[%emt 0:21:10]} 22. Kd3 {[%emt 0:05:19]} Nc6 {[%emt 0:02:48]} 23. a3 {[%emt 0:02:06]} Na5 {[%emt 0:17:29]} 24. Ne2 {[%emt 0:10:24]} Rxc1 {[%emt 0:00:06]} 25. Nxc1 {[%emt 0:00:44]} Nc4 {[%emt 0:00:01]} 26. Kc2 {[%emt 0:01:20]} Bc5 {[%emt 0:01:42]} 27. Nd3 {[%emt 0:01:35]} Bd4 {[%emt 0:00:05]} 28. Bc8 {[%emt 0:02:36]} a5 {[%emt 0:00:33]} 29. Bb7 {[%emt 0:00:47]} Ke7 {[%emt 0:02:37]} 30. Bc6 {[%emt 0:00:29]} Nd6 {[%emt 0:01:03]} 31. f4 {[%emt 0:01:13]} f6 {[%emt 0:00:52]} 32. Ne1 {[%emt 0:01:03]} exf4 {[%emt 0:01:23]} 33. gxf4 {[%emt 0:00:07]} b4 {[%emt 0:00:37]} 34. axb4 {[%emt 0:00:23]} axb4 {[%emt 0:00:03]} 35. Kb3 {[%emt 0:01:18]} g5 {[%emt 0:01:25]} 36. Nf3 {[%emt 0:00:31]} Be3 {[%emt 0:00:34]} 37. fxg5 {[%emt 0:03:42]} fxg5 {[%emt 0:00:01]} 38. Kxb4 {[%emt 0:00:22]} g4 {[%emt 0:00:18]} 39. Ne5 {[%emt 0:07:28]} Bd4 {[%emt 0:00:30]} 40. Nxg4 {[%emt 0:00:00]} Bxb2 {[%emt 0:00:00]} 41. Kc5 {[%emt 0:02:43]} Nf7 {[%emt 0:05:26]} 42. Kd5 {[%emt 0:04:07]} h5 {[%emt 0:00:12]} 43. Ne3 {[%emt 0:00:38]} Be5 {[%emt 0:03:57]} 44. Nf5+ {[%emt 0:00:40]} Kf6 {[%emt 0:00:10]} 45. h4 {[%emt 0:00:32]} Bf4 {[%emt 0:04:43]} 46. Be8 {[%emt 0:01:58]} Nh6 {[%emt 0:00:25]} 47. Nxh6 {[%emt 0:00:24]} Bxh6 {[%emt 0:00:04]} 48. Bxh5 {[%emt 0:00:10]} Bf8 {[%emt 0:00:18]} 49. Bg4 {[%emt 0:00:22]} Kg7 {[%emt 0:00:01]} 50. e5 {[%emt 0:00:09]} Ba3 {[%emt 0:00:08]} 51. e6 {[%emt 0:00:05]} Bb4 {[%emt 0:00:08]} 52. h5 {[%emt 0:00:05]} Ba3 {[%emt 0:00:04]} 53. h6+ {[%emt 0:00:04]} Kxh6 {[%emt 0:00:07]} 54. e7 {[%emt 0:00:02]} Bxe7 {[%emt 0:00:08]} 1/2-1/2

[Event "2nd Irena Warakomska Memorial-A"]
[Site "Suwalki"]
[Date "2018.08.04"]
[Round "5"]
[White "Harshini A"]
[Black "Grebeniuk, Semen"]
[Result "0-1"]
[ECO "B78"]
[WhiteElo "2124"]
[BlackElo "2306"]
[Annotator "NA"]
[PlyCount "60"]
[EventDate "2018.08.01"]
[EventType "swiss"]
[EventCountry "POL"]
[SourceTitle "playchess.com"]
[Source "ChessBase"]
[SourceQuality "1"]
[TimeControl "40/5400+30:1800+30"]

1. e4 {[%emt 0:00:00]} c5 {[%emt 0:01:08]} 2. Nf3 {[%emt 0:00:00]} d6 {[%emt 0:00:14]} 3. d4 {[%emt 0:00:00]} cxd4 {[%emt 0:00:07]} 4. Nxd4 {[%emt 0:00:00]} Nf6 {[%emt 0:00:08]} 5. Nc3 {[%emt 0:00:00]} g6 {[%emt 0:00:29]} 6. Be3 {[%emt 0:00:00]} Bg7 {[%emt 0:00:07]} 7. f3 {[%emt 0:00:02]} O-O {[%emt 0:00:09]} 8. Qd2 {[%emt 0:00:03]} Nc6 {[%emt 0:00:08]} 9. Bc4 {[%emt 0:00:05]} Bd7 {[%emt 0:01:44]} 10. O-O-O {[%emt 0:00:06]} Rb8 {[%emt 0:01:11]} 11. Bb3 {[%emt 0:02:55]} Na5 12. g4 {[%emt 0:04:04]} b5 {[%emt 0:02:40]} 13. Kb1 {[%emt 0:00:14]} Nc4 {[%emt 0:00:21]} 14. Bxc4 {[%emt 0:00:05]} bxc4 {[%emt 0:00:04]} 15. Ka1 {[%emt 0:00:03]} Qa5 16. Nd5 Qd8 {[%emt 0:12:22]} 17. h4 {[%emt 0:05:16]} Nxd5 {[%emt 0:02:17]} 18. exd5 Rb6 {[%emt 0:23:45]} 19. h5 {[%emt 0:06:58]} Ra6 {[%emt 0:04:46]} 20. hxg6 {[%emt 0:02:36]} fxg6 21. Qh2 {[%emt 0:10:28]} Qa5 {[%emt 0:00:55]} 22. a3 {[%emt 0:00:49]} c3 {[%emt 0:11:35]} 23. Qxh7+ {[%emt 0:15:23]} Kf7 {[%emt 0:00:18]} 24. Rh6 {[%emt 0:00:16]} Rb8 {[%emt 0:18:11]} 25. Qxg6+ {[%emt 0:10:10]} Kg8 {[%emt 0:00:21]} 26. Qh7+ {[%emt 0:28:23]} Kf8 27. Qh8+ {[%emt 0:05:14]} Bxh8 {[%emt 0:00:44]} 28. Rxh8+ Kf7 29. Rxb8 {[%emt 0:04:13]} cxb2+ {[%emt 0:02:03]} 30. Kb1 {[%emt 0:00:11]} Qxa3 0-1

[Event "2nd Irena Warakomska Memorial-A"]
[Site "Suwalki"]
[Date "2018.08.04"]
[Round "5"]
[White "Kuchava, Ana"]
[Black "Buraczewski, Rafal"]
[Result "1/2-1/2"]
[ECO "D05"]
[WhiteElo "2124"]
[BlackElo "2221"]
[Annotator "NA"]
[PlyCount "40"]
[EventDate "2018.08.01"]
[EventType "swiss"]
[EventCountry "POL"]
[SourceTitle "playchess.com"]
[Source "ChessBase"]
[SourceQuality "1"]
[TimeControl "40/5400+30:1800+30"]

1. d4 {[%emt 0:00:00]} c5 {[%emt 0:00:00]} 2. e3 {[%emt 0:02:05]} Nf6 {[%emt 0:00:10]} 3. Nf3 {[%emt 0:00:06]} e6 {[%emt 0:01:04]} 4. Bd3 {[%emt 0:00:55]} d5 {[%emt 0:00:16]} 5. c3 {[%emt 0:01:55]} Nc6 {[%emt 0:00:58]} 6. Ne5 {[%emt 0:01:23]} cxd4 {[%emt 0:01:38]} 7. exd4 {[%emt 0:06:17]} Nxe5 {[%emt 0:00:39]} 8. dxe5 {[%emt 0:00:03]} Nd7 {[%emt 0:00:10]} 9. Qe2 {[%emt 0:01:07]} Qc7 {[%emt 0:01:40]} 10. f4 {[%emt 0:02:55]} Nc5 {[%emt 0:00:41]} 11. Bc2 {[%emt 0:02:15]} b6 {[%emt 0:00:29]} 12. b4 {[%emt 0:06:05]} Ba6 {[%emt 0:01:07]} 13. b5 {[%emt 0:01:41]} Bb7 {[%emt 0:00:06]} 14. O-O {[%emt 0:02:12]} g6 {[%emt 0:07:05]} 15. Kh1 {[%emt 0:00:44]} Bg7 {[%emt 0:02:29]} 16. Be3 {[%emt 0:04:23]} O-O 17. Bd4 {[%emt 0:00:09]} Qd7 {[%emt 0:04:51]} 18. Nd2 {[%emt 0:00:30]} Rac8 {[%emt 0:06:21]} 19. a4 {[%emt 0:00:27]} f6 {[%emt 0:01:06]} 20. Nf3 {[%emt 0:08:18]} f5 {[%emt 0:13:16]} 1/2-1/2

[Event "2nd Irena Warakomska Memorial-A"]
[Site "Suwalki"]
[Date "2018.08.04"]
[Round "5"]
[White "Walkusz, Witoslaw"]
[Black "Punin, Andrii"]
[Result "0-1"]
[ECO "B18"]
[WhiteElo "2121"]
[BlackElo "2339"]
[Annotator "NA"]
[PlyCount "82"]
[EventDate "2018.08.01"]
[EventType "swiss"]
[EventCountry "POL"]
[SourceTitle "playchess.com"]
[Source "ChessBase"]
[SourceQuality "1"]
[TimeControl "40/5400+30:1800+30"]

1. e4 {[%emt 0:00:00]} c6 {[%emt 0:00:00]} 2. d4 {[%emt 0:00:00]} d5 {[%emt 0:00:00]} 3. Nd2 {[%emt 0:00:00]} dxe4 {[%emt 0:00:02]} 4. Nxe4 {[%emt 0:00:00]} Bf5 {[%emt 0:00:13]} 5. Ng3 {[%emt 0:00:00]} Bg6 {[%emt 0:00:06]} 6. Bc4 {[%emt 0:01:03]} e6 {[%emt 0:00:10]} 7. N1e2 {[%emt 0:00:17]} Nf6 {[%emt 0:01:07]} 8. Nf4 {[%emt 0:01:14]} Bd6 {[%emt 0:00:19]} 9. O-O {[%emt 0:10:47]} O-O {[%emt 0:01:48]} 10. Nxg6 {[%emt 0:02:03]} hxg6 {[%emt 0:00:07]} 11. a4 {[%emt 0:02:55]} a5 {[%emt 0:03:13]} 12. c3 {[%emt 0:07:18]} Qc7 {[%emt 0:01:58]} 13. Qf3 {[%emt 0:11:09]} Nbd7 {[%emt 0:02:06]} 14. Bg5 {[%emt 0:06:47]} c5 {[%emt 0:00:40]} 15. Bb5 {[%emt 0:10:30]} Nd5 {[%emt 0:10:22]} 16. Bxd7 {[%emt 0:09:22]} Qxd7 {[%emt 0:00:28]} 17. dxc5 {[%emt 0:00:18]} Bxc5 {[%emt 0:00:19]} 18. Ne4 {[%emt 0:05:54]} Qc6 {[%emt 0:05:44]} 19. Nxc5 {[%emt 0:08:29]} Qxc5 {[%emt 0:00:07]} 20. Rfd1 {[%emt 0:02:45]} Rac8 {[%emt 0:10:43]} 21. Rd4 {[%emt 0:02:51]} Nxc3 {[%emt 0:05:24]} 22. bxc3 {[%emt 0:07:22]} Qxg5 {[%emt 0:00:24]} 23. Qxb7 {[%emt 0:01:00]} Rxc3 {[%emt 0:00:17]} 24. h4 {[%emt 0:01:54]} Rc1+ {[%emt 0:03:56]} 25. Rxc1 {[%emt 0:01:08]} Qxc1+ {[%emt 0:00:07]} 26. Kh2 {[%emt 0:00:01]} Qc5 {[%emt 0:03:14]} 27. Qe4 {[%emt 0:01:20]} Qc7+ {[%emt 0:01:55]} 28. g3 {[%emt 0:01:08]} Rd8 {[%emt 0:01:09]} 29. Rxd8+ {[%emt 0:01:15]} Qxd8 {[%emt 0:00:06]} 30. Qc6 {[%emt 0:00:43]} Kh7 {[%emt 0:02:47]} 31. Kg1 {[%emt 0:02:11]} Qd5 {[%emt 0:02:51]} 32. Qe8 {[%emt 0:01:01]} e5 {[%emt 0:00:45]} 33. Qb5 {[%emt 0:00:48]} Qd2 {[%emt 0:05:28]} 34. Qe8 {[%emt 0:01:03]} f6 {[%emt 0:00:36]} 35. Kg2 {[%emt 0:00:50]} Qd5+ {[%emt 0:00:24]} 36. f3 {[%emt 0:01:25]} Qd2+ {[%emt 0:00:36]} 37. Kh3 {[%emt 0:00:06]} Qe3 {[%emt 0:00:41]} 38. h5 {[%emt 0:00:56]} gxh5 {[%emt 0:00:21]} 39. Qc6 {[%emt 0:00:45]} Qg1 {[%emt 0:00:35]} 40. Qc2+ {[%emt 0:00:00]} Kh6 {[%emt 0:00:00]} 41. g4 {[%emt 0:02:54]} Qh1+ {[%emt 0:01:16]} 0-1